fUST/lending_fUST_20250819
["ID","MTS","AMOUNT","RATE_DAILY","PERIOD"]
[380109821,1755547845570,-480.0,0.00019452,2]
[380109822,1755547845579,-462.81597092,0.00019452,2]
[380109823,1755547845588,-480.0,0.00019452,2]
[380109824,1755547845597,-400.0,0.00019452,2]
[380109825,1755547845607,-480.0,0.00019452,2]
[380109826,1755547845616,-480.0,0.00019452,2]
[380109827,1755547845625,-480.0,0.00019452,2]
[380109828,1755547845634,-480.0,0.00019452,2]
[380109829,1755547845643,-480.0,0.00019452,2]
[380109830,1755547845653,-480.0,0.00019452,2]
[380109831,1755547845663,-456.38556634,0.00019452,2]
[380109832,1755547845674,-441.35567931,0.00019452,2]
[380109833,1755547845683,-480.0,0.00019452,2]
[380109835,1755547845692,-530.78,0.00019452,2]
[380109837,1755547845702,-480.0,0.00019452,2]
[380109839,1755547845712,-480.0,0.00019452,2]
[380109840,1755547845721,-2680.09,0.00019452,2]
[380109841,1755547845730,-480.0,0.00019452,2]
[380109842,1755547845740,-480.0,0.00019452,2]
[380109844,1755547845749,-480.0,0.00019452,2]
[380109846,1755547845758,-480.0,0.00019452,2]
[380109848,1755547845767,-480.0,0.00019452,2]
[380109850,1755547845777,-480.0,0.00019452,2]
[380109851,1755547845786,-480.0,0.00019452,2]
[380109853,1755547845795,-480.0,0.00019452,2]
[380109854,1755547845807,-477.73269909,0.00019452,2]
[380109855,1755547845817,-545.89,0.00019452,2]
[380109856,1755547845826,-480.0,0.00019452,2]
[380109857,1755547845835,-480.0,0.00019452,2]
[380109858,1755547845846,-480.0,0.00019452,2]
[380109859,1755547845856,-600.28,0.00019452,2]
[380109861,1755547845866,-480.0,0.00019452,2]
[380109862,1755547845875,-500.0,0.00019452,2]
[380109864,1755547845886,-480.0,0.00019452,2]
[380109865,1755547845896,-480.0,0.00019452,2]
[380109866,1755547845906,-480.0,0.00019452,2]
[380109867,1755547845916,-364.21009258,0.00019452,2]
[380109868,1755547845928,-480.0,0.00019452,2]
[380109869,1755547845937,-480.0,0.00019452,2]
[380109870,1755547845947,-500.0,0.00019473,2]
[380109871,1755547845956,-484.81535733,0.00019473,2]
[380109872,1755547845965,-268.25135886,0.00019473,2]
[380109874,1755547845974,-500.0,0.00019473,2]
[380109875,1755547845983,-500.0,0.00019473,2]
[380109876,1755547845992,-200.0,0.00019561,20]
[380109877,1755547846002,-200.0,0.00019561,20]
[380109878,1755547846011,-200.0,0.00019561,20]
[380109880,1755547846020,-200.0,0.00019561,20]
[380109881,1755547846029,-200.0,0.00019561,20]
[380109882,1755547846039,-200.0,0.00019561,20]
[380109883,1755547846048,-200.0,0.00019561,20]
[380109884,1755547846057,-200.0,0.00019561,20]
[380109885,1755547846066,-200.0,0.00019561,20]
[380109886,1755547846075,-200.0,0.00019561,20]
[380109887,1755547846085,-600.0,0.00019561,20]
[380109888,1755547846094,-175.65807596,0.00019626,2]
[380109889,1755547846103,-500.0,0.00019725,2]
[380109890,1755547846112,-207.42432633,0.00019725,2]
[380109891,1755547846124,-500.0,0.00019725,2]
[380109892,1755547846134,-248.81423262,0.00019725,2]
[380109893,1755547846143,-447.39944388,0.00019726,2]
[380109894,1755547846153,-480.0,0.00019726,2]
[380109895,1755547846162,-184.24774284,0.00019726,2]
[380109896,1755547846173,-480.0,0.00019726,2]
[380109897,1755547846182,-480.0,0.00019726,2]
[380109898,1755547846191,-480.0,0.00019726,2]
[380109899,1755547846201,-447.36236777,0.00019726,2]
[380109900,1755547846210,-480.0,0.00019726,2]
[380109901,1755547846219,-460.0,0.00019726,2]
[380109902,1755547846228,-480.0,0.00019726,2]
[380109903,1755547846238,-460.0,0.00019726,2]
[380109904,1755547846247,-480.0,0.00019726,2]
[380109905,1755547846256,-480.0,0.00019726,2]
[380109906,1755547846265,-480.0,0.00019726,2]
[380109907,1755547846275,-480.0,0.00019726,2]
[380109908,1755547846284,-480.0,0.00019726,2]
[380109909,1755547846294,-480.0,0.00019726,2]
[380109910,1755547846304,-480.0,0.00019726,2]
[380109911,1755547846313,-480.0,0.00019726,2]
[380109912,1755547846322,-480.0,0.00019726,2]
[380109913,1755547846332,-480.0,0.00019726,2]
[380109914,1755547846341,-480.0,0.00019726,2]
[380109915,1755547846351,-480.0,0.00019726,2]
[380109916,1755547846361,-480.0,0.00019726,2]
[380109917,1755547846371,-480.0,0.00019726,2]
[380109918,1755547846381,-480.0,0.00019726,2]
[380109919,1755547846390,-480.0,0.00019726,2]
[380109920,1755547846399,-158.66,0.00019726,2]
[380109921,1755547846409,-440.0,0.00019726,2]
[380109922,1755547846418,-480.0,0.00019726,2]
[380109923,1755547846428,-480.0,0.00019726,2]
[380109924,1755547846437,-480.0,0.00019726,2]
[380109925,1755547846447,-480.0,0.00019726,2]
[380109926,1755547846456,-480.0,0.00019726,2]
[380109927,1755547846465,-155.73310218,0.00019726,2]
[380109928,1755547846474,-462.5911655,0.00019726,2]
[380109929,1755547846483,-598.94,0.00019726,2]
[380109930,1755547846492,-480.0,0.00019726,2]
[380109931,1755547846501,-480.0,0.00019726,2]
[380109932,1755547846510,-480.0,0.00019726,2]
[380109933,1755547846519,-480.0,0.00019726,2]
[380109934,1755547846528,-464.01011507,0.00019726,2]
[380109935,1755547846538,-480.0,0.00019726,2]
[380109936,1755547846547,-480.0,0.00019726,2]
[380109937,1755547846556,-365.3269916,0.00019726,2]
[380109938,1755547846565,-480.0,0.00019726,2]
[380109939,1755547846575,-480.0,0.00019726,2]
[380109940,1755547846584,-480.0,0.00019726,2]
[380109941,1755547846593,-480.0,0.00019726,2]
[380109942,1755547846603,-480.0,0.00019726,2]
[380109943,1755547846612,-480.0,0.00019726,2]
[380109944,1755547846621,-480.0,0.00019726,2]
[380109945,1755547846630,-480.0,0.00019726,2]
[380109946,1755547846640,-480.0,0.00019726,2]
[380109947,1755547846648,-153.52,0.00019726,2]
[380109948,1755547846657,-480.0,0.00019726,2]
[380109949,1755547846667,-480.0,0.00019726,2]
[380109950,1755547846677,-461.40631053,0.00019726,2]
[380109951,1755547846686,-480.0,0.00019726,2]
[380109952,1755547846695,-480.0,0.00019726,2]
[380109953,1755547846706,-460.0,0.00019726,2]
[380109954,1755547846715,-480.0,0.00019726,2]
[380109955,1755547846724,-190.5,0.00019726,2]
[380109956,1755547846733,-480.0,0.00019726,2]
[380109957,1755547846742,-480.0,0.00019726,2]
[380109958,1755547846752,-480.0,0.00019726,2]
[380109959,1755547846761,-380.0,0.00019726,2]
[380109960,1755547846770,-480.0,0.00019726,2]
[380109961,1755547846780,-480.0,0.00019726,2]
[380109962,1755547846789,-480.0,0.00019726,2]
[380109963,1755547846799,-480.0,0.00019726,2]
[380109964,1755547846812,-2260.96,0.00019726,2]
[380109965,1755547846821,-480.0,0.00019726,2]
[380109966,1755547846830,-480.0,0.00019726,2]
[380109967,1755547846839,-480.0,0.00019726,2]
[380109968,1755547846849,-517.44,0.00019726,2]
[380109969,1755547846858,-619.28,0.00019726,2]
[380109970,1755547846867,-480.0,0.00019726,2]
[380109971,1755547846875,-480.0,0.00019726,2]
[380109972,1755547846886,-480.0,0.00019726,2]
[380109973,1755547846896,-955.03,0.00019726,2]
[380109974,1755547846905,-473.91,0.00019726,2]
[380109975,1755547846914,-480.0,0.00019726,2]
[380109976,1755547846924,-480.0,0.00019726,2]
[380109977,1755547846933,-480.0,0.00019726,2]
[380109978,1755547846943,-480.0,0.00019726,2]
[380109979,1755547846952,-460.0,0.00019726,2]
[380109980,1755547846961,-480.0,0.00019726,2]
[380109981,1755547847053,-480.0,0.00019726,2]
[380109982,1755547847063,-595.59,0.00019726,2]
[380109983,1755547847072,-480.0,0.00019726,2]
[380109984,1755547847081,-480.0,0.00019726,2]
[380109985,1755547847090,-480.0,0.00019726,2]
[380109986,1755547847100,-480.0,0.00019726,2]
[380109987,1755547847109,-480.0,0.00019726,2]
[380109988,1755547847119,-344.16710633,0.00019726,2]
[380109989,1755547847128,-480.0,0.00019726,2]
[380109990,1755547847137,-479.82459895,0.00019726,2]
[380109991,1755547847147,-480.0,0.00019726,2]
[380109992,1755547847159,-480.0,0.00019726,2]
[380109993,1755547847169,-480.0,0.00019726,2]
[380109994,1755547847179,-480.0,0.00019726,2]
[380109995,1755547847189,-480.0,0.00019726,2]
[380109996,1755547847199,-1150.62,0.00019726,2]
[380109997,1755547847208,-480.0,0.00019726,2]
[380109998,1755547847220,-531.53,0.00019726,2]
[380109999,1755547847229,-480.0,0.00019726,2]
[380110000,1755547847239,-480.0,0.00019726,2]
[380110001,1755547847249,-480.0,0.00019726,2]
[380110002,1755547847258,-441.29444275,0.00019726,2]
[380110003,1755547847267,-186.63855974,0.00019726,2]
[380110004,1755547847277,-480.0,0.00019726,2]
[380110005,1755547847286,-480.0,0.00019726,2]
[380110006,1755547847295,-480.0,0.00019726,2]
[380110007,1755547847305,-480.0,0.00019726,2]
[380110008,1755547847314,-1619.67,0.00019726,2]
[380110009,1755547847323,-480.0,0.00019726,2]
[380110010,1755547847332,-467.57020985,0.00019726,2]
[380110011,1755547847341,-480.0,0.00019726,2]
[380110012,1755547847351,-480.0,0.00019726,2]
[380110013,1755547847360,-480.0,0.00019726,2]
[380110014,1755547847369,-845.71,0.00019726,2]
[380110015,1755547847378,-498.25,0.00019726,2]
[380110016,1755547847387,-480.0,0.00019726,2]
[380110017,1755547847397,-480.0,0.00019726,2]
[380110018,1755547847406,-480.0,0.00019726,2]
[380110019,1755547847415,-480.0,0.00019726,2]
[380110020,1755547847424,-480.0,0.00019726,2]
[380110021,1755547847433,-471.1278582,0.00019726,2]
[380110022,1755547847442,-487.05,0.00019726,2]
[380110023,1755547847451,-480.0,0.00019726,2]
[380110024,1755547847460,-488.46165316,0.00019726,2]
[380110025,1755547847469,-400.0,0.00019726,2]
[380110026,1755547847478,-480.0,0.00019726,2]
[380110027,1755547847487,-231.06741361,0.00019726,2]
[380110028,1755547847496,-398.28,0.00019726,2]
[380110029,1755547847505,-460.0,0.00019726,2]
[380110030,1755547847515,-481.98587842,0.00019726,2]
[380110031,1755547847524,-192.91481767,0.00019726,2]
[380110032,1755547847533,-480.0,0.00019726,2]
[380110033,1755547847542,-571.89,0.00019726,2]
[380110034,1755547847551,-461.90874143,0.00019726,2]
[380110035,1755547847560,-480.0,0.00019726,2]
[380110036,1755547847569,-813.53,0.00019726,2]
[380110037,1755547847579,-480.0,0.00019726,2]
[380110038,1755547847588,-505.23556705,0.00019726,2]
[380110039,1755547847597,-480.0,0.00019726,2]
[380110040,1755547847606,-480.0,0.00019726,2]
[380110041,1755547847615,-480.0,0.00019726,2]
[380110042,1755547847625,-480.0,0.00019726,2]
[380110043,1755547847638,-427.32378351,0.00019726,2]
[380110044,1755547847647,-480.0,0.00019726,2]
[380110045,1755547847656,-480.0,0.00019726,2]
[380110046,1755547847665,-480.0,0.00019726,2]
[380110047,1755547847680,-480.0,0.00019726,2]
[380110048,1755547847689,-480.0,0.00019726,2]
[380110049,1755547847698,-480.0,0.00019726,2]
[380110050,1755547847707,-530.78,0.00019726,2]
[380110051,1755547847716,-480.0,0.00019726,2]
[380110052,1755547847726,-445.40713613,0.00019726,2]
[380110053,1755547847735,-2680.09,0.00019726,2]
[380110054,1755547847745,-601.65586863,0.00019726,2]
[380110055,1755547847755,-480.0,0.00019726,2]
[380110056,1755547847764,-480.0,0.00019726,2]
[380110057,1755547847773,-480.0,0.00019726,2]
[380110058,1755547847782,-480.0,0.00019726,2]
[380110059,1755547847791,-480.0,0.00019726,2]
[380110060,1755547847804,-480.0,0.00019726,2]
[380110061,1755547847818,-545.89,0.00019726,2]
[380110062,1755547847827,-175.42955997,0.00019726,2]
[380110063,1755547847837,-480.0,0.00019726,2]
[380110064,1755547847847,-424.03598598,0.00019726,2]
[380110065,1755547847856,-600.28,0.00019726,2]
[380110066,1755547847865,-500.0,0.00019726,2]
[380110067,1755547847875,-480.0,0.00019726,2]
[380110068,1755547847888,-480.0,0.00019726,2]
[380110069,1755547847897,-480.0,0.00019726,2]
[380110070,1755547847906,-387.79160732,0.00019758,2]
[380110071,1755547847915,-192.549834,0.00019863,2]
[380110072,1755547847924,-500.0,0.00019878,2]
[380110073,1755547847933,-480.0,0.0002,2]
[380110074,1755547847942,-480.0,0.0002,2]
[380110075,1755547847951,-480.0,0.0002,2]
[380110076,1755547847960,-440.0,0.0002,2]
[380110077,1755547847969,-320.0,0.0002,2]
[380110078,1755547847978,-480.0,0.0002,2]
[380110079,1755547847987,-460.0,0.0002,2]
[380110080,1755547847995,-480.0,0.0002,2]
[380110081,1755547848005,-480.0,0.0002,2]
[380110082,1755547848014,-480.0,0.0002,2]
[380110083,1755547848023,-480.0,0.0002,2]
[380110084,1755547848033,-480.0,0.0002,2]
[380110085,1755547848042,-480.0,0.0002,2]
[380110086,1755547848051,-480.0,0.0002,2]
[380110087,1755547848060,-480.0,0.0002,2]
[380110088,1755547848069,-480.0,0.0002,2]
[380110089,1755547848079,-480.0,0.0002,2]
[380110090,1755547848088,-386.72,0.0002,2]
[380110091,1755547848098,-480.0,0.0002,2]
[380110092,1755547848107,-436.76,0.0002,2]
[380110093,1755547848117,-480.0,0.0002,2]
[380110094,1755547848126,-186.81310314,0.0002,2]
[380110095,1755547848136,-480.0,0.0002,2]
[380110096,1755547848145,-183.06,0.0002,2]
[380110097,1755547848156,-480.0,0.0002,2]
[380110098,1755547848165,-480.0,0.0002,2]
[380110099,1755547848174,-480.0,0.0002,2]
[380110100,1755547848183,-488.9,0.0002,2]
[380110101,1755547848193,-480.0,0.0002,2]
[380110102,1755547848202,-480.0,0.0002,2]
[380110103,1755547848211,-480.0,0.0002,2]
[380110104,1755547848220,-480.0,0.0002,2]
[380110105,1755547848230,-480.0,0.0002,2]
[380110106,1755547848239,-480.0,0.0002,2]
[380110107,1755547848249,-480.0,0.0002,2]
[380110108,1755547848258,-480.0,0.0002,2]
[380110109,1755547848267,-2260.96,0.0002,2]
[380110110,1755547848276,-480.0,0.0002,2]
[380110111,1755547848286,-553.1,0.0002,2]
[380110112,1755547848295,-517.44,0.0002,2]
[380110113,1755547848304,-480.0,0.0002,2]
[380110114,1755547848313,-955.03,0.0002,2]
[380110115,1755547848322,-480.0,0.0002,2]
[380110116,1755547848331,-480.0,0.0002,2]
[380110117,1755547848340,-480.0,0.0002,2]
[380110118,1755547848349,-480.0,0.0002,2]
[380110119,1755547848358,-480.0,0.0002,2]
[380110120,1755547848368,-480.0,0.0002,2]
[380110121,1755547848379,-480.0,0.0002,2]
[380110122,1755547848389,-480.0,0.0002,2]
[380110123,1755547848399,-480.0,0.0002,2]
[380110124,1755547848409,-480.0,0.0002,2]
[380110125,1755547848420,-480.0,0.0002,2]
[380110126,1755547848433,-480.0,0.0002,2]
[380110127,1755547848445,-480.0,0.0002,2]
[380110128,1755547848458,-480.0,0.0002,2]
[380110129,1755547848467,-1150.62,0.0002,2]
[380110130,1755547848477,-480.0,0.0002,2]
[380110131,1755547848486,-480.0,0.0002,2]
[380110132,1755547848496,-480.0,0.0002,2]
[380110133,1755547848505,-480.0,0.0002,2]
[380110134,1755547848514,-480.0,0.0002,2]
[380110135,1755547848524,-409.69801664,0.0002,2]
[380110136,1755547848533,-480.0,0.0002,2]
[380110137,1755547848542,-480.0,0.0002,2]
[380110138,1755547848552,-1619.67,0.0002,2]
[380110139,1755547848561,-480.0,0.0002,2]
[380110140,1755547848569,-258.41,0.0002,2]
[380110141,1755547848579,-480.0,0.0002,2]
[380110142,1755547848588,-480.0,0.0002,2]
[380110143,1755547848598,-845.71,0.0002,2]
[380110144,1755547848608,-498.25,0.0002,2]
[380110145,1755547848617,-480.0,0.0002,2]
[380110146,1755547848626,-480.0,0.0002,2]
[380110147,1755547848636,-480.0,0.0002,2]
[380110148,1755547848645,-461.21713178,0.0002,2]
[380110149,1755547848654,-487.05,0.0002,2]
[380110150,1755547848663,-480.0,0.0002,2]
[380110151,1755547848672,-480.0,0.0002,2]
[380110152,1755547848683,-571.89,0.0002,2]
[380110153,1755547848693,-480.0,0.0002,2]
[380110154,1755547848702,-813.53,0.0002,2]
[380110155,1755547848711,-480.0,0.0002,2]
[380110156,1755547848720,-480.0,0.0002,2]
[380110157,1755547848730,-480.0,0.0002,2]
[380110158,1755547848739,-480.0,0.0002,2]
[380110159,1755547848749,-480.0,0.0002,2]
[380110160,1755547848758,-480.0,0.0002,2]
[380110161,1755547848767,-480.0,0.0002,2]
[380110162,1755547848777,-442.32798101,0.0002,2]
[380110163,1755547848787,-480.0,0.0002,2]
[380110164,1755547848797,-480.0,0.0002,2]
[380110165,1755547848809,-530.78,0.0002,2]
[380110166,1755547848819,-480.0,0.0002,2]
[380110167,1755547848828,-480.0,0.0002,2]
[380110168,1755547848838,-2680.09,0.0002,2]
[380110169,1755547848933,-480.0,0.0002,2]
[380110170,1755547848943,-254.89733024,0.0002,2]
[380110171,1755547848952,-480.0,0.0002,2]
[380110172,1755547848962,-480.0,0.0002,2]
[380110173,1755547848971,-480.0,0.0002,2]
[380110174,1755547848980,-545.89,0.0002,2]
[380110175,1755547848990,-480.0,0.0002,2]
[380110176,1755547849000,-600.28,0.0002,2]
[380110177,1755547849009,-500.0,0.0002,2]
[380110178,1755547849019,-480.0,0.0002,2]
[380110179,1755547849028,-480.0,0.0002,2]
[380110180,1755547849038,-500.0,0.00020272,2]
[380110181,1755547849048,-480.0,0.00020273,2]
[380110182,1755547849057,-460.0,0.00020273,2]
[380110183,1755547849066,-480.0,0.00020273,2]
[380110184,1755547849076,-480.0,0.00020273,2]
[380110185,1755547849086,-480.0,0.00020273,2]
[380110186,1755547849095,-480.0,0.00020273,2]
[380110187,1755547849105,-480.0,0.00020273,2]
[380110188,1755547849114,-480.0,0.00020273,2]
[380110189,1755547849124,-235.88,0.00020273,2]
[380110190,1755547849134,-480.0,0.00020273,2]
[380110191,1755547849144,-480.0,0.00020273,2]
[380110192,1755547849154,-499.26651427,0.00020273,2]
[380110193,1755547849164,-480.0,0.00020273,2]
[380110194,1755547849175,-537.62,0.00020273,2]
[380110195,1755547849186,-205.54,0.00020273,2]
[380110196,1755547849196,-480.0,0.00020273,2]
[380110197,1755547849206,-480.0,0.00020273,2]
[380110198,1755547849216,-364.52,0.00020273,2]
[380110199,1755547849226,-480.0,0.00020273,2]
[380110200,1755547849235,-480.0,0.00020273,2]
[380110201,1755547849245,-480.0,0.00020273,2]
[380110202,1755547849255,-480.0,0.00020273,2]
[380110203,1755547849264,-480.0,0.00020273,2]
[380110204,1755547849273,-312.78,0.00020273,2]
[380110205,1755547849283,-2260.96,0.00020273,2]
[380110206,1755547849292,-480.0,0.00020273,2]
[380110207,1755547849301,-517.44,0.00020273,2]
[380110208,1755547849311,-480.0,0.00020273,2]
[380110209,1755547849320,-955.03,0.00020273,2]
[380110210,1755547849330,-420.0,0.00020273,2]
[380110211,1755547849339,-480.0,0.00020273,2]
[380110212,1755547849348,-480.0,0.00020273,2]
[380110213,1755547849357,-480.0,0.00020273,2]
[380110214,1755547849366,-480.0,0.00020273,2]
[380110215,1755547849380,-480.0,0.00020273,2]
[380110216,1755547849403,-417.10367854,0.00020273,2]
[380110217,1755547849420,-480.0,0.00020273,2]
[380110218,1755547849430,-480.0,0.00020273,2]
[380110219,1755547849444,-480.0,0.00020273,2]
[380110220,1755547849454,-480.0,0.00020273,2]
[380110221,1755547849464,-1150.62,0.00020273,2]
[380110222,1755547849473,-480.0,0.00020273,2]
[380110223,1755547849483,-480.0,0.00020273,2]
[380110224,1755547849492,-480.0,0.00020273,2]
[380110225,1755547849501,-156.78,0.00020273,2]
[380110226,1755547849511,-480.0,0.00020273,2]
[380110227,1755547849520,-480.0,0.00020273,2]
[380110228,1755547849529,-480.0,0.00020273,2]
[380110229,1755547849538,-460.0,0.00020273,2]
[380110230,1755547849547,-1619.67,0.00020273,2]
[380110231,1755547849556,-845.71,0.00020273,2]
[380110232,1755547849566,-498.25,0.00020273,2]
[380110233,1755547849575,-480.0,0.00020273,2]
[380110234,1755547849584,-480.0,0.00020273,2]
[380110235,1755547849594,-480.0,0.00020273,2]
[380110236,1755547849603,-487.05,0.00020273,2]
[380110237,1755547849613,-480.0,0.00020273,2]
[380110238,1755547849622,-400.0,0.00020273,2]
[380110239,1755547849631,-571.89,0.00020273,2]
[380110240,1755547849640,-480.0,0.00020273,2]
[380110241,1755547849650,-813.53,0.00020273,2]
[380110242,1755547849659,-480.0,0.00020273,2]
[380110243,1755547849669,-480.0,0.00020273,2]
[380110244,1755547849679,-480.0,0.00020273,2]
[380110245,1755547849689,-480.0,0.00020273,2]
[380110246,1755547849698,-480.0,0.00020273,2]
[380110247,1755547849707,-480.0,0.00020273,2]
[380110248,1755547849716,-480.0,0.00020273,2]
[380110249,1755547849725,-480.0,0.00020273,2]
[380110250,1755547849735,-480.0,0.00020273,2]
[380110251,1755547849745,-530.78,0.00020273,2]
[380110252,1755547849754,-480.0,0.00020273,2]
[380110253,1755547849763,-2680.09,0.00020273,2]
[380110254,1755547849773,-480.0,0.00020273,2]
[380110255,1755547849783,-336.73175392,0.00020273,2]
[380110256,1755547849792,-603.11,0.00020273,2]
[380110257,1755547849803,-480.0,0.00020273,2]
[380110258,1755547849815,-545.89,0.00020273,2]
[380110259,1755547849824,-480.0,0.00020273,2]
[380110260,1755547849833,-600.28,0.00020273,2]
[380110261,1755547849843,-480.0,0.00020273,2]
[380110262,1755547849851,-480.0,0.00020273,2]
[380110263,1755547849861,-428.98590075,0.00020426,2]
[380110264,1755547849870,-160.0,0.00020436,2]
[380110265,1755547849880,-276.71,0.00020547,2]
[380110266,1755547849891,-480.0,0.00020547,2]
[380110267,1755547849900,-480.0,0.00020547,2]
[380110268,1755547849910,-480.0,0.00020547,2]
[380110269,1755547849919,-480.0,0.00020547,2]
[380110270,1755547849929,-480.0,0.00020547,2]
[380110271,1755547849939,-480.0,0.00020547,2]
[380110272,1755547849948,-480.0,0.00020547,2]
[380110273,1755547849957,-480.0,0.00020547,2]
[380110274,1755547849967,-480.0,0.00020547,2]
[380110275,1755547849977,-480.0,0.00020547,2]
[380110276,1755547849986,-480.0,0.00020547,2]
[380110277,1755547849996,-480.0,0.00020547,2]
[380110278,1755547850005,-480.0,0.00020547,2]
[380110279,1755547850015,-480.0,0.00020547,2]
[380110280,1755547850024,-480.0,0.00020547,2]
[380110281,1755547850034,-2260.96,0.00020547,2]
[380110282,1755547850044,-411.76,0.00020547,2]
[380110283,1755547850054,-517.44,0.00020547,2]
[380110284,1755547850065,-480.0,0.00020547,2]
[380110285,1755547850075,-955.03,0.00020547,2]
[380110286,1755547850085,-480.0,0.00020547,2]
[380110287,1755547850096,-440.0,0.00020547,2]
[380110288,1755547850106,-195.81055902,0.00020547,2]
[380110289,1755547850117,-480.0,0.00020547,2]
[380110290,1755547850128,-480.0,0.00020547,2]
[380110291,1755547850138,-318.02234493,0.00020547,2]
[380110292,1755547850149,-480.0,0.00020547,2]
[380110293,1755547850159,-480.0,0.00020547,2]
[380110294,1755547850170,-466.11,0.00020547,2]
[380110295,1755547850180,-1150.62,0.00020547,2]
[380110296,1755547850189,-480.0,0.00020547,2]
[380110297,1755547850199,-480.0,0.00020547,2]
[380110298,1755547850209,-480.0,0.00020547,2]
[380110299,1755547850218,-480.0,0.00020547,2]
[380110300,1755547850228,-526.18,0.00020547,2]
[380110301,1755547850238,-480.0,0.00020547,2]
[380110302,1755547850248,-1619.67,0.00020547,2]
[380110303,1755547850258,-845.71,0.00020547,2]
[380110304,1755547850268,-498.25,0.00020547,2]
[380110305,1755547850278,-603.44,0.00020547,2]
[380110306,1755547850287,-480.0,0.00020547,2]
[380110307,1755547850297,-480.0,0.00020547,2]
[380110308,1755547850307,-487.05,0.00020547,2]
[380110309,1755547850317,-480.0,0.00020547,2]
[380110310,1755547850326,-571.89,0.00020547,2]
[380110311,1755547850336,-813.53,0.00020547,2]
[380110312,1755547850345,-480.0,0.00020547,2]
[380110313,1755547850355,-480.0,0.00020547,2]
[380110314,1755547850364,-480.0,0.00020547,2]
[380110315,1755547850374,-480.0,0.00020547,2]
[380110316,1755547850383,-480.0,0.00020547,2]
[380110317,1755547850392,-480.0,0.00020547,2]
[380110318,1755547850402,-480.0,0.00020547,2]
[380110319,1755547850411,-480.0,0.00020547,2]
[380110320,1755547850420,-530.78,0.00020547,2]
[380110321,1755547850431,-480.0,0.00020547,2]
[380110322,1755547850440,-480.0,0.00020547,2]
[380110323,1755547850450,-2680.09,0.00020547,2]
[380110324,1755547850459,-545.89,0.00020547,2]
[380110325,1755547850470,-600.28,0.00020547,2]
[380110326,1755547850480,-480.0,0.00020547,2]
[380110327,1755547850489,-480.0,0.00020547,2]
[380110328,1755547850499,-420.0,0.00020792,2]
[380110329,1755547850508,-480.0,0.00020821,2]
[380110330,1755547850518,-424.06,0.00020821,2]
[380110331,1755547850528,-480.0,0.00020821,2]
[380110332,1755547850538,-480.0,0.00020821,2]